fUST/lending_fUST_20250107
["ID","MTS","AMOUNT","RATE_DAILY","PERIOD"]
[347954938,1736243439376,-500.0,0.00018446,2]
[347954939,1736243439385,-500.0,0.00018446,2]
[347954940,1736243439395,-500.0,0.00018446,2]
[347954941,1736243439404,-500.0,0.00018446,2]
[347954942,1736243439414,-500.0,0.00018446,2]
[347954943,1736243439424,-164.89360361,0.00018449,2]
[347954944,1736243439433,-595.4153981,0.0001845,2]
[347954945,1736243439442,-16189.33511807,0.0001845,2]
[347954946,1736243439451,-951759.26977842,0.0001845,5]
[347954947,1736243439463,-4105.08889245,0.0001845,5]
[347954985,1736243440497,-62720.29753193,0.0001845,5]
[347954987,1736243440507,-242294.32377283,0.0001845,5]
[347954993,1736243440556,-359.50100004,0.0001845,5]
[347955299,1736243443584,-1848.91683043,0.0001845,5]
[347955306,1736243443648,-5203.85044883,0.0001845,5]
[347955313,1736243443706,-47925.99977042,0.0001845,5]
[347956068,1736244119372,400.0,0.00013973,2]
[347956070,1736244451177,-546.71180323,0.00016731,2]
[347956138,1736244632718,-300.0,0.00016204,2]
[347956140,1736244632728,-21200.0,0.00016204,2]
[347956288,1736244638722,-1195.17649006,0.00016204,2]
[347956289,1736244638801,-670.89738549,0.00016204,2]
[347956338,1736244642679,-754.92612445,0.00016204,2]
[347956340,1736244642692,-241.5512998,0.00016205,2]
[347956342,1736244642702,-15001.06020885,0.00016205,3]
[347956344,1736244642712,-296.07107512,0.000169,2]
[347956346,1736244642723,-181.5514986,0.00017,2]
[347956348,1736244642733,-24900.0,0.0001711,2]
[347956350,1736244642744,-150.0,0.000175,2]
[347956352,1736244642753,-206.0,0.000175,2]
[347956354,1736244642763,-420.0,0.00017713,2]
[347956356,1736244642773,-680.346,0.0001787,2]
[347956358,1736244642783,-417.9777704,0.000179,2]
[347956360,1736244642792,-500.0,0.00017996,2]
[347956362,1736244642807,-500.0,0.00017996,2]
[347956364,1736244642817,-240.38386012,0.00017996,2]
[347956367,1736244642827,-500.0,0.00017996,2]
[347956369,1736244642837,-500.0,0.00017996,2]
[347956371,1736244642846,-208.40988755,0.00017996,2]
[347956373,1736244642855,-500.0,0.00017996,2]
[347956375,1736244642864,-500.0,0.00017996,2]
[347956377,1736244642874,-500.0,0.00017996,2]
[347956379,1736244642883,-457.2708897,0.00017996,2]
[347956382,1736244642892,-500.0,0.00017996,2]
[347956385,1736244642902,-500.0,0.00017996,2]
[347956389,1736244642911,-500.0,0.00017996,2]
[347956392,1736244642921,-500.0,0.00017996,2]
[347956394,1736244642931,-500.0,0.00017996,2]
[347956396,1736244642940,-500.0,0.00017996,2]
[347956398,1736244642949,-500.0,0.00017996,2]
[347956400,1736244642959,-500.0,0.00017996,2]
[347956403,1736244642968,-500.0,0.00017996,2]
[347956405,1736244642977,-500.0,0.00017996,2]
[347956408,1736244642987,-500.0,0.00017996,2]
[347956411,1736244642995,-500.0,0.00017996,2]
[347956433,1736244643156,-500.0,0.00017996,2]
[347956435,1736244643165,-500.0,0.00017996,2]
[347956437,1736244643175,-500.0,0.00017996,2]
[347956439,1736244643184,-500.0,0.00017996,2]
[347956441,1736244643194,-500.0,0.00017996,2]
[347956443,1736244643203,-500.0,0.00017996,2]
[347956445,1736244643213,-500.0,0.00017996,2]
[347956447,1736244643222,-500.0,0.00017996,2]
[347956449,1736244643232,-500.0,0.00017996,2]
[347956451,1736244643241,-500.0,0.00017996,2]
[347956453,1736244643250,-500.0,0.00017996,2]
[347956455,1736244643259,-500.0,0.00017996,2]
[347956457,1736244643269,-500.0,0.00017996,2]
[347956460,1736244643279,-500.0,0.00017996,2]
[347956461,1736244643288,-500.0,0.00017996,2]
[347956463,1736244643298,-500.0,0.00017996,2]
[347956466,1736244643308,-500.0,0.00017996,2]
[347956468,1736244643317,-500.0,0.00017996,2]
[347956470,1736244643326,-176.42911826,0.00017996,2]
[347956471,1736244643335,-500.0,0.00017996,2]
[347956473,1736244643344,-500.0,0.00017996,2]
[347956476,1736244643354,-500.0,0.00017996,2]
[347956478,1736244643363,-689.565,0.00017999,2]
[347956479,1736244643372,-40694.77532525,0.00018,2]
[347956482,1736244643381,-150.0,0.00018,2]
[347956484,1736244643392,-206.0,0.00018,2]
[347956486,1736244643401,-170.99,0.00018288,2]
[347956488,1736244643410,-617.42519773,0.00018333,2]
[347956490,1736244643420,-151.0,0.000184,2]
[347956492,1736244643430,-4833.0,0.000184,2]
[347956494,1736244643443,-162.0,0.00018426,2]
[347956496,1736244643453,-172.38,0.00018426,2]
[347956497,1736244643462,-1700.04733279,0.00018436,2]
[347956500,1736244643471,-218591.8286172,0.0001845,5]
[347956788,1736244646622,-509.0,0.000175,2]
[347956790,1736244646632,-2051.73172906,0.0001845,5]
[347956792,1736244646644,-1016.0,0.0001845,5]
[347957007,1736245202331,17949.08768652,0.00025,120]
[347957008,1736245297192,400.0,0.00013973,2]
[347957476,1736245837153,-2414.17782388,0.00017055,2]
[347957477,1736245837163,-795.37591061,0.00017227,2]
[347957478,1736245837173,-811.17329751,0.00017327,2]
[347957479,1736245837182,-300.0,0.00017327,2]
[347957480,1736245837192,-24900.0,0.00017328,2]
[347957481,1736245837203,-199.0,0.000175,2]
[347957483,1736245837213,-176.0,0.000175,2]
[347957485,1736245837223,-652.121,0.0001753,2]
[347957487,1736245837233,-3973.07896557,0.000179,2]
[347957489,1736245837243,-301.41718505,0.000179,2]
[347957491,1736245837252,-509.0,0.00018,2]
[347957493,1736245837261,-199.0,0.00018,2]
[347957495,1736245837272,-176.0,0.00018,2]
[347957497,1736245837281,-3973.07896536,0.00018107,2]
[347957499,1736245837290,-611.7982217,0.00018265,2]
[347957501,1736245837299,-13190.83019966,0.0001828,2]
[347957503,1736245837309,-3973.07896536,0.00018314,2]
[347957505,1736245837318,-1530.04259952,0.0001835,2]
[347957507,1736245837327,-748.65465233,0.0001835,2]
[347957509,1736245837336,-4703.85044884,0.0001835,2]
[347957510,1736245837346,-212.32176461,0.00018384,2]
[347957511,1736245837357,-384.99709358,0.00018384,2]
[347957512,1736245837367,-151.0,0.000184,2]
[347957513,1736245837376,-151.0,0.000184,2]
[347957514,1736245837387,-151.0,0.000184,2]
[347957515,1736245837396,-151.0,0.000184,2]
[347957516,1736245837405,-151.0,0.000184,2]
[347957517,1736245837415,-151.0,0.000184,2]
[347957518,1736245837424,-151.0,0.000184,2]
[347957519,1736245837434,-151.0,0.000184,2]
[347957520,1736245837444,-151.0,0.000184,2]
[347957521,1736245837453,-151.0,0.000184,2]
[347957522,1736245837463,-151.0,0.000184,2]
[347957523,1736245837472,-151.0,0.000184,2]
[347957524,1736245837481,-151.0,0.000184,2]
[347957525,1736245837491,-151.0,0.000184,2]
[347957526,1736245837500,-151.0,0.000184,2]
[347957527,1736245837510,-151.0,0.000184,2]
[347957528,1736245837520,-151.0,0.000184,2]
[347957529,1736245837529,-152.0,0.00018412,2]
[347957530,1736245837538,-500.0,0.00018418,2]
[347957531,1736245837547,-500.0,0.00018418,2]
[347957532,1736245837556,-500.0,0.00018418,2]
[347957533,1736245837566,-430.21638171,0.00018418,2]
[347957534,1736245837575,-500.0,0.00018418,2]
[347957535,1736245837584,-500.0,0.00018418,2]
[347957536,1736245837593,-557.51276037,0.00018418,2]
[347957537,1736245837603,-500.0,0.00018418,2]
[347957538,1736245837612,-500.0,0.00018418,2]
[347957539,1736245837622,-500.0,0.00018418,2]
[347957540,1736245837632,-500.0,0.00018418,2]
[347957541,1736245837642,-500.0,0.00018418,2]
[347957542,1736245837651,-196.98912662,0.00018418,2]
[347957543,1736245837661,-507.39643115,0.00018418,2]
[347957544,1736245837671,-376.50738266,0.00018418,2]
[347957545,1736245837687,-123.49261734,0.00018418,2]
[347957546,1736245837697,-500.0,0.00018418,2]
[347957547,1736245837706,-95.38738266,0.00018418,2]
[347957570,1736245838705,-404.61261734,0.00018418,2]
[347957572,1736245838715,-500.0,0.00018418,2]
[347957574,1736245838724,-500.0,0.00018418,2]
[347957575,1736245838733,-500.0,0.00018418,2]
[347957576,1736245838743,-500.0,0.00018418,2]
[347957577,1736245838753,-500.0,0.00018418,2]
[347957579,1736245838762,-500.0,0.00018418,2]
[347957580,1736245838772,-500.0,0.00018418,2]
[347957581,1736245838782,-500.0,0.00018418,2]
[347957582,1736245838791,-500.0,0.00018418,2]
[347957584,1736245838800,-500.0,0.00018418,2]
[347957585,1736245838810,-47490.00937798,0.0001842,2]
[347957586,1736245838821,-151.0,0.00018439,2]
[347957587,1736245838830,-151.0,0.00018449,2]
[347957588,1736245838839,-599.967,0.00018449,2]
[347957589,1736245838849,-197.25240855,0.00018449,2]
[347957590,1736245838858,-3602.25624247,0.0001845,2]
[347957591,1736245838868,-50529.23654497,0.0001845,2]
[347957592,1736245838878,-513514.94783119,0.0001845,5]
[347957593,1736245838890,-698.8,0.0001845,2]
[347957594,1736245838899,-347869.8318757,0.0001845,5]
[347957595,1736245838911,-152724.12715321,0.0001845,5]
[347957596,1736245838923,-17211.12602391,0.0001845,5]
[347957597,1736245838935,-987.19347196,0.0001845,5]
[347957598,1736245838946,-8446.04842757,0.0001845,5]
[347957606,1736245842861,-118396.65394513,0.0001845,5]
[347957612,1736245843871,-901.61910252,0.0001845,5]
[347957613,1736245843881,-38328.98961557,0.0001845,5]
[347957614,1736245843894,-60676.04223711,0.0001845,5]
[347957615,1736245843905,-4295.27910266,0.0001845,5]
[347957628,1736245846757,-154.69782577,0.00018449,2]
[347957631,1736245846767,-5065.81436944,0.0001845,5]
[347957632,1736245846780,-358.17911868,0.0001845,5]
[347957635,1736245846842,-23692.64518128,0.0001845,5]
[347957636,1736245846853,-24079.6108461,0.0001845,5]
[347957637,1736245846864,-372.952584,0.0001845,5]
[347957638,1736245846921,-794889.75694516,0.0001845,5]
[347957639,1736245846930,-777.807086,0.0001845,2]
[347957640,1736245846940,-777.807086,0.0001845,2]
[347957641,1736245846949,-6082.94123409,0.00018453,2]
[347957642,1736245846959,-500.0,0.00018454,2]
[347957643,1736245846969,-267.08838462,0.00018473,2]
[347957644,1736245846978,-500.0,0.00018473,2]
[347957645,1736245846987,-500.0,0.00018473,2]
[347957646,1736245846997,-500.76913346,0.00018473,2]
[347957647,1736245847006,-483.73482604,0.00018473,2]
[347957648,1736245847016,-500.0,0.00018473,2]
[347957649,1736245847026,-151.0,0.000185,2]
[347957650,1736245847035,-150.0,0.000185,2]
[347957651,1736245847044,-206.0,0.000185,2]
[347957652,1736245847054,-509.0,0.000185,2]
[347957653,1736245847063,-199.0,0.000185,2]
[347957654,1736245847072,-176.0,0.000185,2]
[347957655,1736245847081,-151.0,0.00018503,2]
[347957656,1736245847091,-447.800468,0.00018503,2]
[347957657,1736245847100,-447.800468,0.00018503,2]
[347957658,1736245847109,-255.658583,0.00018503,2]
[347957659,1736245847118,-255.658583,0.00018503,2]
[347957660,1736245847127,-1107.600221,0.00018503,2]
[347957661,1736245847138,-292.533554,0.00018503,2]
[347957662,1736245847147,-151.0,0.00018503,2]
[347957663,1736245847157,-151.0,0.00018503,2]
[347957664,1736245847166,-151.0,0.00018503,2]
[347957665,1736245847175,-151.0,0.00018503,2]
[347957666,1736245847185,-151.0,0.00018503,2]
[347957667,1736245847194,-572.97661,0.00018503,2]
[347957668,1736245847205,-572.97661,0.00018503,2]
[347957669,1736245847216,-777.807086,0.00018503,2]
[347957670,1736245847225,-777.807086,0.00018503,2]
[347957671,1736245847235,-299.440696,0.00018503,2]
[347957672,1736245847244,-299.440696,0.00018503,2]
[347957673,1736245847253,-151.0,0.00018503,2]
[347957674,1736245847263,-151.0,0.00018503,2]
[347957675,1736245847273,-81591.04167001,0.00018503,5]
[347957676,1736245847285,-8319.24612179,0.00018503,5]
[347957678,1736246027545,1250.89,0.00025,120]
[347957684,1736246258103,400.0,0.00013973,2]
[347957685,1736246645978,1000.0,0.00015001,2]
[347957686,1736246746892,1000.0,0.00015001,2]
[347957690,1736246852111,-580.80276294,0.00016394,2]
[347957691,1736246852132,-251.96005445,0.00016459,2]
[347957692,1736246852153,-20.34906421,0.00016559,2]
[347957742,1736247031959,-165.6553775,0.00015922,2]
[347957744,1736247031969,-263.74003691,0.00017102,2]
[347957746,1736247031979,-151.0,0.00017195,2]
[347957748,1736247031988,-300.0,0.00017202,2]
[347957750,1736247031998,-193.90458559,0.00017202,2]
[347958237,1736247037951,-14527.43174483,0.00017202,2]
[347958239,1736247037963,-6890.87794649,0.00017202,2]
[347959081,1736247294658,400.0,0.00013973,2]
[347959082,1736247798016,488.896118,0.00014827,2]
[347959083,1736247926241,1506.9473023,0.00014673,2]
[347959084,1736247993086,1257.88511193,0.00015001,2]
[347959085,1736248040140,-300.0,0.00015499,2]
[347959086,1736248040161,-277.35181107,0.00015499,2]
[347959093,1736248163131,400.0,0.00013973,2]
[347959094,1736248166097,-300.0,0.00015497,2]
[347959095,1736248166119,-2023.62276957,0.00015497,2]
[347959096,1736248235186,-300.0,0.00015496,2]
[347959097,1736248235195,-4917.33042482,0.00015496,2]
[347959475,1736248243135,-13638.66957518,0.00015496,2]
[347959477,1736248243144,-500.0,0.00015504,2]
[347959479,1736248243154,-500.0,0.00015504,2]
[347959481,1736248243163,-500.0,0.00015504,2]
[347959483,1736248243172,-521.88768074,0.00015504,2]
[347959484,1736248243181,-192.45830428,0.00015504,2]
[347959486,1736248243191,-1801.12812124,0.00015504,2]
[347959488,1736248243200,-22878.93710042,0.00015504,2]
[347959795,1736248246117,-7492.53422754,0.00015504,2]
[347959797,1736248246129,-1786.88007293,0.00015504,2]
[347959799,1736248246139,-24900.0,0.00015505,2]
[347959801,1736248246148,-554.39030955,0.000156,2]
[347959803,1736248246158,-487.51187146,0.000156,2]
[347959805,1736248246167,-840.82952934,0.000156,2]
[347959807,1736248246177,-151.0,0.00016175,2]
[347959809,1736248246187,-35100.93936395,0.00016185,2]
[347959811,1736248246198,-5363.49061178,0.00016185,2]
[347959814,1736248246209,-963.74026127,0.00016185,2]
[347959816,1736248246219,-195.7024162,0.00016216,2]
[347959818,1736248246228,-261.27437681,0.00016438,2]
[347959820,1736248246237,-152.0,0.00016651,2]
[347959822,1736248246247,-297.21825424,0.00016723,2]
[347959824,1736248246257,-6645.85738328,0.0001676,2]
[347959826,1736248246266,-2064.31699584,0.0001693,2]
[347959828,1736248246275,-420.0,0.00016951,2]
[347959830,1736248246284,-176.71377593,0.00017049,2]
[347959832,1736248246294,-928.09305324,0.00017149,2]
[347960350,1736248454102,358.9,0.00025,120]
[347960351,1736248881725,10000.0,0.00015001,2]
[347960354,1736249194220,400.0,0.00013973,2]
[347960413,1736249432637,-617.67527869,0.00016,2]
[347960415,1736249432646,-300.0,0.00016106,2]
[347960417,1736249432656,-341.0,0.00016106,2]
[347960419,1736249432665,-4046.20738511,0.00016107,2]
[347960421,1736249432674,-12356.02088397,0.00016107,2]
[347960431,1736249432819,-4802.94322302,0.00016107,2]
[347960434,1736249432840,-993.67333107,0.00016107,2]
[347960439,1736249432871,-3269.21792786,0.00016107,2]
[347960442,1736249432882,-3478.14463408,0.00016107,2]
[347960445,1736249432891,-382.352633,0.00016133,2]
[347960448,1736249432901,-354.20792605,0.00016748,2]
[347960450,1736249432910,-783.19480687,0.00016752,2]
[347961004,1736249438331,-1510.8924315,0.00016752,2]
[347961007,1736249438343,-8357.63843635,0.00016752,2]
[347961009,1736249438352,-5277.8109215,0.00016848,2]
[347961011,1736249438361,-1155.25193715,0.00016848,2]
[347961013,1736249438370,-513.22798718,0.00016948,2]
[347961015,1736249438379,-482.75300359,0.00017048,2]
[347961017,1736249438388,-152.0,0.00017054,2]
[347961019,1736249438398,-176.71377592,0.00017082,2]
[347961021,1736249438407,-5962.78489425,0.00017149,2]
[347961022,1736249438416,-1321.75494173,0.00017149,2]
[347961024,1736249438426,-302.0,0.00017172,2]
[347961026,1736249438435,-500.0,0.00017176,2]
[347961028,1736249438444,-602.28684246,0.00017176,2]
[347961030,1736249438455,-500.0,0.00017176,2]
[347961032,1736249438464,-500.0,0.00017176,2]
[347961034,1736249438473,-602.28684246,0.00017176,2]
[347961036,1736249438482,-500.0,0.00017176,2]
[347961038,1736249438491,-500.0,0.00017176,2]
[347961040,1736249438500,-602.28684246,0.00017176,2]
[347961042,1736249438509,-602.28684246,0.00017176,2]
[347961044,1736249438518,-500.0,0.00017176,2]
[347961046,1736249438529,-500.0,0.00017176,2]
[347961048,1736249438538,-602.28684246,0.00017176,2]
[347961050,1736249438548,-500.0,0.00017176,2]
[347961052,1736249438557,-602.28684246,0.00017176,2]
[347961054,1736249438567,-500.0,0.00017176,2]
[347961056,1736249438577,-500.0,0.00017176,2]
[347961058,1736249438586,-500.0,0.00017176,2]
[347961060,1736249438595,-602.28684246,0.00017176,2]
[347961062,1736249438605,-488.55082366,0.00017176,2]
[347961064,1736249438614,-602.28684246,0.00017176,2]
[347961066,1736249438623,-500.0,0.00017176,2]
[347961068,1736249438632,-500.0,0.00017176,2]
[347961070,1736249438642,-602.28684246,0.00017176,2]
[347961072,1736249438650,-500.0,0.00017176,2]
[347961074,1736249438660,-500.0,0.00017176,2]
[347961076,1736249438669,-500.0,0.00017176,2]
[347961078,1736249438678,-500.0,0.00017176,2]
[347961080,1736249438687,-500.0,0.00017176,2]
[347961082,1736249438697,-500.0,0.00017176,2]
[347961084,1736249438708,-602.28684246,0.00017176,2]
[347961086,1736249438717,-500.0,0.00017176,2]
[347961088,1736249438726,-500.0,0.00017176,2]
[347961090,1736249438735,-602.28684246,0.00017176,2]
[347961092,1736249438745,-500.0,0.00017176,2]
[347961094,1736249438754,-602.28684246,0.00017176,2]
[347961096,1736249438763,-500.0,0.00017176,2]
[347961098,1736249438772,-500.0,0.00017176,2]
[347961100,1736249438781,-602.28684246,0.00017176,2]
[347961102,1736249438791,-500.0,0.00017176,2]
[347961104,1736249438800,-500.0,0.00017176,2]
[347961106,1736249438809,-602.28684246,0.00017176,2]
[347961108,1736249438818,-500.0,0.00017176,2]
[347961110,1736249438827,-500.0,0.00017176,2]
[347961112,1736249438836,-602.28684246,0.00017176,2]
[347961115,1736249438846,-500.0,0.00017176,2]
[347961117,1736249438856,-602.28684246,0.00017176,2]
[347961119,1736249438865,-500.0,0.00017176,2]
[347961121,1736249438875,-602.28684246,0.00017176,2]
[347961122,1736249438883,-454.91660003,0.00017176,2]
[347961123,1736249438892,-602.28684246,0.00017176,2]
[347961124,1736249438902,-602.28684246,0.00017176,2]
[347961125,1736249438911,-500.0,0.00017176,2]
[347961126,1736249438920,-500.0,0.00017176,2]
[347961127,1736249438929,-602.28684246,0.00017176,2]
[347961128,1736249438938,-500.0,0.00017176,2]
[347961129,1736249438947,-602.28684246,0.00017176,2]
[347961130,1736249438957,-500.0,0.00017176,2]
[347961131,1736249438966,-602.28684246,0.00017176,2]
[347961132,1736249438975,-500.0,0.00017176,2]
[347961133,1736249438984,-602.28684246,0.00017176,2]
[347961134,1736249438993,-500.0,0.00017176,2]
[347961135,1736249439002,-602.28684246,0.00017176,2]
[347961137,1736249439011,-602.28684246,0.00017176,2]
[347961139,1736249439021,-500.0,0.00017176,2]
[347961141,1736249439031,-602.28684246,0.00017176,2]
[347961143,1736249439040,-602.28684246,0.00017176,2]
[347961146,1736249439049,-500.0,0.00017176,2]
[347961148,1736249439060,-602.28684246,0.00017176,2]
[347961150,1736249439069,-500.0,0.00017176,2]
[347961152,1736249439078,-602.28684246,0.00017176,2]
[347961154,1736249439087,-602.28684246,0.00017176,2]
[347961156,1736249439096,-602.28684246,0.00017176,2]
[347961158,1736249439105,-602.28684246,0.00017176,2]
[347961160,1736249439114,-602.28684246,0.00017176,2]
[347961162,1736249439123,-602.28684246,0.00017176,2]
[347961164,1736249439132,-602.28684246,0.00017176,2]
[347961176,1736249439243,-602.28684246,0.00017176,2]
[347961178,1736249439252,-602.28684246,0.00017176,2]
[347961179,1736249439261,-602.28684246,0.00017176,2]
[347961180,1736249439270,-602.28684246,0.00017176,2]
[347961181,1736249439279,-602.28684246,0.00017176,2]
[347961182,1736249439288,-602.28684246,0.00017176,2]
[347961183,1736249439298,-602.28684246,0.00017176,2]
[347961184,1736249439307,-602.28684246,0.00017176,2]
[347961185,1736249439316,-602.28684246,0.00017176,2]
[347961186,1736249439325,-602.28684246,0.00017176,2]
[347961187,1736249439335,-602.28684246,0.00017176,2]
[347961188,1736249439345,-602.28684246,0.00017176,2]
[347961189,1736249439354,-602.28684246,0.00017176,2]
[347961190,1736249439363,-602.28684246,0.00017176,2]
[347961191,1736249439372,-602.28684246,0.00017176,2]
[347961192,1736249439382,-602.28684246,0.00017176,2]
[347961193,1736249439391,-602.28684246,0.00017176,2]
[347961194,1736249439400,-602.28684246,0.00017176,2]
[347961195,1736249439409,-602.28684246,0.00017176,2]
[347961196,1736249439419,-602.28684246,0.00017176,2]
[347961197,1736249439428,-602.28684246,0.00017176,2]
[347961198,1736249439437,-602.28684246,0.00017176,2]
[347961199,1736249439446,-500.0,0.00017181,2]
[347961200,1736249439457,-318.89291766,0.00017181,2]
[347961201,1736249439466,-254.62784609,0.00017181,2]
[347961202,1736249439475,-239.98317063,0.00017181,2]
[347961203,1736249439484,-500.0,0.00017181,2]
[347961204,1736249439493,-11744.51173922,0.00017182,2]
[347961205,1736249439502,-97052.08387966,0.00017182,2]
[347961206,1736249439511,-28977.4078338,0.00017182,2]
[347961207,1736249439520,-500.0,0.000172,2]
[347961208,1736249439531,-24719.99847563,0.000172,5]
[347961209,1736249439540,-500.0,0.000172,2]
[347961210,1736249439550,-1000.0,0.00017201,30]
[347961211,1736249439560,-1000.0,0.00017201,35]
[347961212,1736249439570,-500.0,0.00017202,2]
[347961213,1736249439579,-257.52860533,0.00017202,2]
[347961214,1736249439588,-500.0,0.00017202,2]
[347961215,1736249439598,-500.0,0.00017202,2]
[347961216,1736249439607,-152.40967308,0.00017202,2]
[347961217,1736249439616,-156.2590886,0.000173,2]
[347961218,1736249439626,-742.0,0.000175,2]
[347961219,1736249439636,-28368.79717767,0.000175,2]
[347961220,1736249439666,-3855.0,0.000175,2]
[347961221,1736249439677,-6580.53765506,0.000175,2]
[347961362,1736249443139,-5072.5,0.000175,2]
[347961364,1736249443151,-377.99243937,0.000175,2]
[347961397,1736249443438,-342.57552811,0.000175,2]
[347961399,1736249443447,-659.161,0.0001757,2]
[347961401,1736249443460,-420.0,0.00017607,2]
[347961403,1736249443468,-354.207926,0.00017659,2]
[347961405,1736249443478,-153.0,0.00017726,2]
[347961407,1736249443487,-153.0,0.00017726,2]
[347961409,1736249443496,-153.0,0.00017726,2]
[347961411,1736249443506,-153.0,0.00017726,2]
[347961413,1736249443515,-153.0,0.00017726,2]
[347961415,1736249443526,-155.549415,0.00017726,2]
[347961417,1736249443535,-153.0,0.00017726,2]
[347961419,1736249443547,-500.0,0.00017748,2]
[347961421,1736249443557,-1000.0,0.00017748,2]
[347961423,1736249443566,-3789.76445904,0.000179,2]
[347961425,1736249443576,-151.0,0.00017914,2]
[347961427,1736249443585,-151.0,0.00017914,2]
[347961429,1736249443594,-151.0,0.00017914,2]
[347961431,1736249443603,-151.0,0.00017914,2]
[347961433,1736249443612,-151.0,0.00017914,2]
[347961435,1736249443621,-151.0,0.00017914,2]
[347961437,1736249443630,-151.0,0.00017914,2]
[347961439,1736249443640,-151.0,0.00017914,2]
[347961441,1736249443649,-151.0,0.00017914,2]
[347961443,1736249443658,-151.0,0.00017914,2]
[347961445,1736249443667,-276.19,0.00017914,2]
[347961447,1736249443676,-2371.04364242,0.00018,2]
[347961449,1736249443685,-463.01,0.00018,2]
[347961451,1736249443695,-742.0,0.00018,2]
[347961453,1736249443706,-321.32838114,0.000181,2]
[347961455,1736249443715,-3789.76445881,0.00018107,2]
[347961457,1736249443724,-170.07,0.00018133,2]
[347961459,1736249443734,-174.0,0.00018157,2]
[347961461,1736249443743,-198.57,0.00018157,2]
[347961463,1736249443752,-500.0,0.000182,2]
[347961465,1736249443761,-500.0,0.000182,2]
[347961479,1736249443872,-500.0,0.000182,2]
[347961481,1736249443882,-500.0,0.000182,2]
[347961483,1736249443891,-500.0,0.000182,2]
[347961485,1736249443900,-386.0,0.000182,2]
[347961487,1736249443909,-1498.25720628,0.000182,2]
[347961489,1736249443919,-1498.25720628,0.000183,2]
[347961491,1736249443928,-791.0,0.000183,2]
[347961493,1736249443936,-3688.13415933,0.00018314,2]
[347961495,1736249443946,-101.63029948,0.00018314,2]
[347961497,1736249443955,-305.8991109,0.00018317,2]
[347961499,1736249443962,-1498.25720628,0.000184,2]
[347961501,1736249443971,-151.0,0.000184,2]
[347961503,1736249443978,-1377.03833955,0.0001841,2]
[347961505,1736249443986,-176.71377592,0.0001841,2]
[347961507,1736249443994,-152.0,0.00018445,2]
[347961509,1736249444002,-162.0,0.00018445,2]
[347961511,1736249444010,-152.0,0.00018445,2]
[347961513,1736249444017,-152.0,0.00018445,2]
[347961515,1736249444025,-152.0,0.00018445,2]
[347961518,1736249444034,-152.0,0.00018445,2]
[347961520,1736249444043,-152.0,0.00018445,2]
[347961522,1736249444049,-152.0,0.00018445,2]
[347961524,1736249444056,-152.0,0.00018445,2]
[347961526,1736249444064,-152.0,0.00018445,2]
[347961528,1736249444072,-152.0,0.00018445,2]
[347961530,1736249444079,-152.0,0.00018445,2]
[347961532,1736249444088,-152.0,0.00018445,2]
[347961534,1736249444096,-152.0,0.00018445,2]
[347961536,1736249444103,-152.0,0.00018445,2]
[347961538,1736249444110,-239.25,0.00018445,2]
[347961540,1736249444117,-479.974,0.00018446,2]
[347961542,1736249444126,-261.0,0.0001848,2]
[347961544,1736249444134,-1498.25720628,0.000185,2]
[347961546,1736249444141,-299.81657723,0.000185,2]
[347961548,1736249444149,-619.0,0.000185,2]
[347961550,1736249444157,-160.53018633,0.000185,2]
[347961552,1736249444165,-742.0,0.000185,2]